Cogmind - Beta 16 @@@ ROGUE MODE // 2025.11.23 @ 08:07:55 // Winter2019/RPGLIKE Player: GFYguy Result: Self-destructed Performance ------------- Evolutions (1) 500 Regions Visited (2) 400 Robots Destroyed (4) 20 Value Destroyed (75) 75 Prototype IDs (0) 0 Alien Tech Used (0) 0 Bonus (0) 0 TOTAL SCORE: 995 Bonus ------- None Cogmind --------- Core Integrity 495/600 Matter 200/300 Energy 181/250 System Corruption 0% Temperature Warm (188) Movement Flying (120) Ox1 Location -9/Materials Parts ------- > --- POWER (1) -------- Ion Engine > --- PROPULSION (2) --- Flight Unit > --- UTILITY (2) ------ Advanced Weight Redist. System Structural Scanner > --- WEAPON (4) ------- Assault Cannon Assault Cannon Assault Cannon Assault Cannon > --- INVENTORY (0) ---- (None) Peak State ------------ > --- POWER ------------ Ion Engine > --- PROPULSION ------- Flight Unit > --- UTILITY ---------- Advanced Weight Redist. System Structural Scanner > --- WEAPON ----------- Assault Cannon Assault Cannon Assault Cannon Assault Cannon > --- INVENTORY -------- (None) [Rating: 18] Favorites ----------- Power Ion Engine Engine Ion Engine Propulsion Light Treads Treads Light Treads Flight Unit Flight Unit Utility Structural Scanner Device Structural Scanner Weapon Medium Laser Energy Gun Medium Laser Ballistic Cannon Assault Cannon Build | -11 -10 -9 ------- Run | Yrd Mat Mat Slots Evolved 5 | 2 . 3 Power . | . . . Propulsion 1 | 1 . . Utility 1 | . . 1 Weapon 3 | 1 . 2 Parts Attached 13 | 5 3 5 Power 1 | 1 . . Engine 1 | 1 . . Core . | . . . Reactor . | . . . Propulsion 3 | 2 1 . Treads 2 | 2 . . Leg . | . . . Wheel . | . . . Hover . | . . . Flight 1 | . 1 . Utility 3 | . 2 1 Device 3 | . 2 1 Storage . | . . . Processor . | . . . Hackware . | . . . Protection . | . . . Artifact . | . . . Weapon 6 | 2 . 4 Energy Gun 2 | 2 . . Energy Cannon . | . . . Ballistic Gun . | . . . Ballistic Cannon 4 | . . 4 Launcher . | . . . Special Weapon . | . . . Impact Weapon . | . . . Slashing Weapon . | . . . Piercing Weapon . | . . . Special Melee Weapon . | . . . Unidentified Prototypes . | . . . Parts Lost . | . . . Power . | . . . Propulsion . | . . . Utility . | . . . Weapon . | . . . Highest Loss Streak . | . . . To Critical Strikes . | . . . Average Backups . | . . . Power . | . . . Propulsion . | . . . Utility . | . . . Weapon . | . . . Tool/Special . | . . . Unused Backups . | . . . Power . | . . . Propulsion . | . . . Utility . | . . . Weapon . | . . . Tool/Special . | . . . Average Slot Usage (%) 93 | . 95 82 Engine 15 | . 16 13 Treads 27 | . 31 . Flight 2 | . . 13 Device 13 | . 12 20 Energy Gun 30 | . 33 13 Ballistic Cannon 2 | . . 20 Peak Build Rating 18 | 5 6 18 Average Rating 5 | 3 5 12 On Entrance 3 | . 5 5 Avg Prop Armor Cover (%) . | . . . Naked Turns . | . . . Heaviest Build 26 | 8 9 26 Greatest Support 40 | 40 40 23 Greatest Overweight (x) 1 | . . 1 Average Overweight (x) . | . . . Largest Inventory Capacity . | . . . Average Capacity . | . . . Most Carried . | . . . Average Carried . | . . . Final Capacity . | . . . Final Carried . | . . . Class Distribution -------------------- 100% | Mutant Dominant Class ---------------- Mutant | -10/Materials Mutant | -9/Materials Resources | -11 -10 -9 ----------- Run | Yrd Mat Mat Matter Collected 270 | 224 46 . Remotely . | . . . Salvage Created 72 | . 28 44 Parts 5 | . 4 1 Haulers Intercepted . | . . . Recyclers Shooed 1 | . 1 . Parts Field Recycled . | . . . Retrieved Matter . | . . . Parts Self-Destructed . | . . . Prevented . | . . . Parts Restored . | . . . Kills | -11 -10 -9 ------- Run | Yrd Mat Mat Combat Hostiles Destroyed 4 | . 3 1 Guns 3 | . 3 . Cannons 1 | . . 1 Classes Destroyed 2 | . 1 1 Swarmer 3 | . 3 . Sentry 1 | . . 1 Best Kill Streak 2 | . 2 1 Combat Bots Only 2 | . 2 1 Max Kills in Single Turn 1 | . 1 1 Gunslinging . | . . . Exploded . | . . . Melee . | . . . Uniques/NPCs Destroyed . | . . . Combat | -11 -10 -9 -------- Run | Yrd Mat Mat Hostile Shots Fired 25 | . 21 4 Missed 5 | . 4 1 Hits 20 | . 17 3 Projectile 20 | . 17 3 Critical Strikes 1 | . . 1 Damage Taken 181 | . 133 48 Core 147 | . 109 38 Absorbed by Shields . | . . . Redirected to Core 108 | . 70 38 Core Remaining (%) 94 | 100 88 . Volleys Fired 11 | . 9 2 Largest 4 | . 2 4 Hottest 148 | . 90 148 Shots Fired 26 | . 18 8 Gun 18 | . 18 . Cannon 8 | . . 8 Launcher . | . . . Special . | . . . Kinetic 8 | . . 8 Thermal 18 | . 18 . Explosive . | . . . Electromagnetic . | . . . Robot Hit Streak 3 | . 3 3 Robot Miss Streak 4 | . 4 2 Penetration Max . | . . . Secondary Targets . | . . . Shots Hit Robots 13 | . 9 4 Core Hits 4 | . 3 1 Critical Kills . | . . . Critical Parts Destroyed . | . . . Critical Strikes . | . . . Melee Attacks . | . . . Impact . | . . . Slashing . | . . . Piercing . | . . . Sneak Attacks . | . . . Combat Hostiles . | . . . Follow-up Attacks . | . . . Damage Inflicted 209 | . 115 94 Guns 115 | . 115 . Cannons 94 | . . 94 Explosions . | . . . Melee . | . . . Ramming . | . . . Kinetic 94 | . . 94 Thermal 115 | . 115 . Explosive . | . . . Electromagnetic . | . . . Impact . | . . . Slashing . | . . . Piercing . | . . . Highest Corruption . | . . . Average Corruption . | . . . Corruption Purged . | . . . Corruption Blocked . | . . . Overload Shots . | . . . Overflow Damage . | . . . Projectiles . | . . . Explosions . | . . . Melee . | . . . Knockbacks . | . . . Impact . | . . . Kinetic . | . . . Secondary . | . . . Self-Inflicted Damage . | . . . Shots . | . . . Rammed . | . . . Targets Rammed . | . . . Kicked . | . . . Crushed . | . . . Highest Temperature 207 | . 150 207 Average Temperature 79 | . 70 132 Received Heat Transfer 27 | . . 27 Siege Activations . | . . . Martial Activations . | . . . Shielding Activations . | . . . Robots Disrupted . | . . . Combat Hostiles . | . . . Robots Corrupted . | . . . Combat Hostiles . | . . . Parts Fried . | . . . Impact Corruptions . | . . . Robots Melted . | . . . Combat Hostiles . | . . . Parts Melted . | . . . Heat Transferred 298 | . 298 . Parts Sabotaged . | . . . Parts Stolen . | . . . Parts Stripped . | . . . Power Chain Reactions . | . . . Alert | -11 -10 -9 ------- Run | Yrd Mat Mat Maximum Alert Level . | . . . Low Security (%) 100 | 100 100 100 Level 1 . | . . . Level 2 . | . . . Level 3 . | . . . Level 4 . | . . . Level 5 . | . . . High Security . | . . . Max Security . | . . . Peak Influence 65 | . 65 33 Initial . | . . . Average 11 | . 14 4 Influence Increases 118 | . 85 33 Destroy 0b10 Robot/C 80 | . 60 20 Destroy Leader 20 | . 10 10 Destroy Structure 3 | . . 3 Lose Combat Pursuer 15 | . 15 . Influence Decreases 85 | . 85 . Time Decay 60 | . 60 . Purge Threat 25 | . 25 . Squads Dispatched . | . . . Investigation . | . . . Extermination . | . . . Reinforcement . | . . . Assault . | . . . Garrison . | . . . Intercept . | . . . Searches Triggered . | . . . Construction Impeded . | . . . Haulers Reinforced . | . . . Active Scanning Responses . | . . . Cargo Convoy Interrupts . | . . . Stealth | -11 -10 -9 --------- Run | Yrd Mat Mat Distress Signals . | . . . Communications Jammed . | . . . Distress Signals . | . . . Times Spotted 9 | . 8 1 Peak Tracking Total 4 | . 4 1 Tactical Retreats 1 | . 1 . Traps | -11 -10 -9 ------- Run | Yrd Mat Mat Traps Triggered . | . . . Indirectly . | . . . Trap Hack Attempts . | . . . Triggered . | . . . Disarmed . | . . . Reprogrammed . | . . . Reused . | . . . Traps Extracted . | . . . Installed . | . . . Triggered . | . . . Machines | -11 -10 -9 ---------- Run | Yrd Mat Mat Machines Disabled . | . . . Max in Single Turn . | . . . Machines Repaired . | . . . Machines Dismantled . | . . . Machines Sabotaged . | . . . Overloaded Fab Kills . | . . . Hacking | -11 -10 -9 --------- Run | Yrd Mat Mat Machines Accessed 1 | . 1 . Terminals 1 | . 1 . Fabricators . | . . . Repair Stations . | . . . Recycling Units . | . . . Scanalyzers . | . . . Garrison Access . | . . . Total Hacks 1 | . 1 . Successful 1 | . 1 . Failed . | . . . Catastrophic . | . . . Database Lockouts . | . . . Manual . | . . . Terminals 1 | . 1 . Fabricators . | . . . Repair Stations . | . . . Recycling Units . | . . . Scanalyzers . | . . . Garrison Access . | . . . Terminal Hacks 1 | . 1 . Unreport Threat 1 | . 1 . Fabricator Hacks . | . . . Repair Station Hacks . | . . . Recycling Unit Hacks . | . . . Scanalyzer . | . . . Garrison Access Hacks . | . . . Unauthorized Hacks . | . . . Terminals . | . . . Fabricators . | . . . Repair Stations . | . . . Recycling Units . | . . . Scanalyzers . | . . . Garrison Access . | . . . Data Cores Recovered . | . . . Used . | . . . Hacking Detections . | . . . Full Trace Events . | . . . Feedback Events . | . . . Feedback Blocked . | . . . Robot Schematics Acquired . | . . . Robots Built . | . . . Authchips . | . . . Time . | . . . Total Robot Build Rating . | . . . Part Schematics Acquired . | . . . Parts Built . | . . . Authchips . | . . . Time . | . . . Total Part Build Rating . | . . . Part Studies Acquired . | . . . Parts Repaired . | . . . Time . | . . . Parts Recycled . | . . . Recycled Matter . | . . . Retrieved Matter . | . . . Retrieved Components . | . . . Parts Scanalyzed . | . . . Part Schematics Acquired . | . . . Parts Damaged . | . . . Bothacking | -11 -10 -9 ------------ Run | Yrd Mat Mat Used RIF Installer . | . . . Robots Hacked . | . . . Non-combat . | . . . Combat . | . . . Robot Hacks Applied . | . . . Relay Couplers Released . | . . . Fabnet Peak Effective % . | . . . Robots Rewired . | . . . Allies Hacked . | . . . Hacks Repelled . | . . . Allies | -11 -10 -9 -------- Run | Yrd Mat Mat Total Allies . | . . . Largest Group . | . . . Highest-Rated Group . | . . . Highest-Rated Ally . | . . . Total Orders . | . . . Ally Attacks . | . . . Total Damage . | . . . Kills . | . . . Allies Corrupted . | . . . Allies Melted . | . . . Intel | -11 -10 -9 ------- Run | Yrd Mat Mat Active Infowar (turns) 310 | . 277 33 Terrain 129 | . 129 . Structural 181 | . 148 33 Robot Analysis Total . | . . . Derelict Logs Recovered . | . . . Drone Launches . | . . . Drone Recoveries . | . . . Exploration | -11 -10 -9 ------------- Run | Yrd Mat Mat Turns Passed 430 | 67 330 33 Spaces Moved 296 | 40 228 28 Core 3 | 3 . . Treads 207 | 37 170 . Legs . | . . . Wheels . | . . . Hover . | . . . Flight 86 | . 58 28 Fastest Speed 40 | 50 40 40 Average Speed 125 | 151 129 60 Slowest Speed 160 | 160 160 120 Overloaded Moves . | . . . Propulsion Burnouts . | . . . Robots Hopped 1 | . 1 . Potential Cave-ins . | . . . Cave-ins Triggered . | . . . Exploration Rate (%) 16 | 5 40 5 Regions Visited 2 Branch Regions . Pre-discovered Areas . | . . . Known Exits Taken . | . . . Unknown Exits Taken 2 | 1 1 . Scrap Searched . | . . . Spaces Dug . | . . . Terrain Destroyed 4 | . . 4 Melee . | . . . Projectile 4 | . . 4 AOE . | . . . Terrain Rammed . | . . . Walls Destroyed . | . . . Machines Disabled . | . . . Actions | -11 -10 -9 --------- Run | Yrd Mat Mat Total 324 | 44 243 37 Wait . | . . . Move 292 | 39 225 28 Hop 1 | . 1 . Pick Up . | . . . Fast Attach 13 | 5 3 5 Attach . | . . . Detach . | . . . Swap . | . . . Drop 5 | . 3 2 Fire 11 | . 9 2 Melee . | . . . Ram . | . . . Kick . | . . . Crush . | . . . Escape Stasis . | . . . Rewire . | . . . Trap . | . . . Miscellaneous 2 | . 2 . Route ------- -11/Scrapyard -10/Materials (discovered 2 exits: [*Mat x2]) -9/Materials History --------- Turn | Location | Event 19 | -11/Scrapyard | Upgraded with Propulsion slot (x1) 19 | -11/Scrapyard | Upgraded with Weapon slot (x1) 20 | -11/Scrapyard | Discovered new exit (range 15) 68 | -11/Scrapyard | Entered Materials 217 | -10/Materials | Discovered new exit (range 15) 309 | -10/Materials | Build established: Mutant 394 | -10/Materials | Discovered new exit (range 11) 398 | -10/Materials | Entered another Materials area 400 | -9/Materials | Reached level 2 406 | -9/Materials | Upgraded with Utility slot (x1) 412 | -9/Materials | Upgraded with Weapon slot (x2) 431 | -9/Materials | Self-destructed Last Messages --------------- 00376_ Upgraded: Mass Support (+5) 00390_ Connecting with Terminal... >>Alert(Purge) Purged threat record, alert level lowered. 00394_ EXIT=FOUND LOCATION=UNKNOWN GOAL=ESCAPE 00400_ Reached level 2. 00406_ Upgraded: Utility Slot (+1) 00406_ Acquired Adv. Weight Redist. System. 00408_ Dropped Med. Laser. 00408_ Dropped Sml. Laser. 00409_ Acquired Assault Cannon. 00412_ Upgraded: Weapon Slot (+2) 00412_ Acquired Assault Cannon. 00417_ Upgraded: Mass Support (+5) 00423_ T-07 Excavator is excavating. 00426_ Critical hit (Burn: +37). 00427_ T-07 Excavator is excavating. 00427_ Y-45 Defender destroyed. Map ----- +----------------------------------------------------+ | ?????????????????????????????????????????????????? | | ?????????????????????????????????????????????????? | | ?????????????????????????????????????????????????? | | ?????????????????????????????????????????????????? | | ?????????????????????????????????????????????????? | | ?????????????????????????????????????????????????? | | ?????????????????????????????????????????????????? | | ?????????????????????????????????????????????????? | | ?????????????????????????????????????????????????? | | ?????????????????????????????????????????????????? | | ?????????????????????????????????????????????????? | | ?????????????????????????????????????????????????? | | ?????????????????????????????????????????????????? | | ?????????????????????????????????????????????????? | | ?????????????????????????????????????????????????? | | ?????????????????????????????????????????????????? | | ?????????????????????????????????????????????????? | | ?????????????????????????????????????????????????? | | ?????????????????????????????????????????????????? | | ?????????????????????????????????????????????????? | | ?????????????????????????????????????????????????? | | ?????????????????????????????????????????????????? | | ????????????##### """ # ############???? | | ???????????? ##########+######+###############???? | | ??????????% # ##???? | | ??????????% @ # """ ##???? | | ?????????? # """ ##???? | | ???????????? ##;t########## # + """ ##???? | | ????????????### ########### [ # # |##???? | | ?????????????????????????##![ !!# # ##???? | | ?????????????????????????##!! !!# #########???? | | ?????????????????????????######### #####???? | | ?????????????????????????######### ##??????? | | ????????????????????????????????## ##??????? | | ????????????????????????????????###########??????? | | ????????????????????????????????###########??????? | | ?????????????????????????????????????????????????? | | ?????????????????????????????????????????????????? | | ?????????????????????????????????????????????????? | | | | | | | | | | | | | | | | | | | | | | | +----------------------------------------------------+ Best States ------------- Heat Dissipation 25 Energy Generation 10 Energy Capacity 250 Matter Stores 300 Matter Capacity 300 Sight Range 16 Terrain Scan Range 14 Terrain Scan Density 10 Additional Mass Support 9 Evasion (%) 62 Recoil Reduction 2 Item Schematics ----------------- None Robot Schematics ------------------ None Fabricated ------------ Nothing Repaired ---------- Nothing Studied --------- None Alien Tech Used ----------------- None Achievements -------------- None Challenges ------------ None RPGLIKE | -11 -10 -9 --------- Run | Yrd Mat Mat Levels Raised 1 | . . 1 XP Earned 5000 | 3000 350 1650 XP Spent 4100 | 1000 100 3000 Upgrades 7 | 2 1 4 Propulsion Slot 1 | 1 . . Utility Slot 1 | . . 1 Weapon Slot 3 | 1 . 2 Mass Support 2 | . 1 1 Protomatter Created 23 | . 23 . Integrity Restored 42 | . 42 . Core 42 | . 42 . Protomatter Decayed 9 | . 9 . Game ------ Seed ThiefConceptSteel Manual? 0 Play Time 00:04:37 Cumulative 50.2 hours Start 2025.11.23 @ 08:04:05 End 2025.11.23 @ 08:07:55 Sessions 1 Manual Loads 0 Difficulty Rogue Special Mode Winter2019/RPGLIKE Game No. 105 Rogue 105 Adventurer 0 Explorer 0 Win Type - Total 0 Types 0/0/0/0/0/0/0/0/0/0 Lore% 21 Gallery% 35 Achievement% 27 Wizard Run 0 Options --------- Layout 0 ASCII 0 Keyboard 0 Movement Mouse Keybinds 0 Fullscreen 2 Font 18/SmallcapsGlow Map View 76x50 Zoom Use 0% Tactical HUD 1 Map Filters NONE Filters NONE Steam 1 RUN: 1d6d9758-6115-42bc-8778-c61e25e8dba8